fUST/lending_fUST_20250522
["ID","MTS","AMOUNT","RATE_DAILY","PERIOD"]
[361905186,1747879848784,-530.60713897,0.00022465,2]
[361905187,1747879848794,-430.0,0.00022465,2]
[361905188,1747879848804,-430.0,0.00022465,2]
[361905189,1747879848815,-602.46,0.00022465,2]
[361905190,1747879848824,-430.0,0.00022465,2]
[361905191,1747879848834,-430.0,0.00022465,2]
[361905192,1747879848845,-527.16,0.00022465,2]
[361905193,1747879848854,-430.0,0.00022465,2]
[361905194,1747879848865,-430.0,0.00022465,2]
[361905195,1747879848874,-430.0,0.00022465,2]
[361905196,1747879848885,-430.0,0.00022465,2]
[361905197,1747879848896,-428.35994549,0.00022465,2]
[361905198,1747879848906,-430.0,0.00022465,2]
[361905199,1747879848916,-1243.96884507,0.00022555,7]
[361905200,1747879848926,-1223.7273391,0.00022563,2]
[361905201,1747879848936,-160.0,0.00022612,2]
[361905202,1747879848947,-894.64583333,0.00022612,2]
[361905203,1747879848957,-160.0,0.00022612,2]
[361905204,1747879848969,-160.0,0.00022612,2]
[361905205,1747879848979,-160.0,0.00022612,2]
[361905206,1747879848990,-216.66249944,0.00022612,2]
[361905207,1747879849000,-151.0,0.00022739,7]
[361905208,1747879849012,-265.584451,0.00022739,7]
[361905209,1747879849022,-235.791171,0.00022739,7]
[361905210,1747879849034,-235.791171,0.00022739,7]
[361905211,1747879849044,-151.417114,0.00022739,7]
[361905212,1747879849055,-354.70021645,0.00022739,2]
[361905213,1747879849066,-494.72794118,0.00022739,2]
[361905214,1747879849077,-430.0,0.00022739,2]
[361905215,1747879849088,-430.0,0.00022739,2]
[361905216,1747879849097,-435.92375421,0.00022739,2]
[361905217,1747879849108,-295.66412864,0.00022739,2]
[361905218,1747879849118,-430.0,0.00022739,2]
[361905219,1747879849129,-430.0,0.00022739,2]
[361905220,1747879849140,-430.0,0.00022739,2]
[361905221,1747879849151,-430.0,0.00022739,2]
[361905222,1747879849161,-430.0,0.00022739,2]
[361905223,1747879849170,-430.0,0.00022739,2]
[361905224,1747879849180,-430.0,0.00022739,2]
[361905225,1747879849191,-430.0,0.00022739,2]
[361905226,1747879849201,-440.51664354,0.00022739,2]
[361905227,1747879849211,-430.0,0.00022739,2]
[361905228,1747879849227,-529.51921207,0.00022739,2]
[361905229,1747879849236,-430.0,0.00022739,2]
[361905230,1747879849246,-430.0,0.00022739,2]
[361905231,1747879849257,-430.0,0.00022739,2]
[361905232,1747879849271,-430.0,0.00022739,2]
[361905233,1747879849281,-500.6,0.00022739,2]
[361905234,1747879849291,-430.0,0.00022739,2]
[361905235,1747879849302,-430.0,0.00022739,2]
[361905236,1747879849314,-430.0,0.00022739,2]
[361905237,1747879849324,-430.0,0.00022739,2]
[361905238,1747879849335,-292.71,0.00022739,2]
[361905239,1747879849348,-430.0,0.00022739,2]
[361905240,1747879849359,-349.38,0.00022739,2]
[361905241,1747879849369,-430.0,0.00022739,2]
[361905242,1747879849379,-430.0,0.00022739,2]
[361905243,1747879849390,-438.94,0.00022739,2]
[361905244,1747879849400,-430.0,0.00022739,2]
[361905245,1747879849410,-430.0,0.00022739,2]
[361905246,1747879849420,-430.0,0.00022739,2]
[361905247,1747879849430,-430.0,0.00022739,2]
[361905248,1747879849440,-474.85,0.00022739,2]
[361905249,1747879849450,-430.0,0.00022739,2]
[361905250,1747879849460,-430.0,0.00022739,2]
[361905251,1747879849476,-430.0,0.00022739,2]
[361905252,1747879849487,-430.0,0.00022739,2]
[361905253,1747879849497,-430.0,0.00022739,2]
[361905254,1747879849507,-416.0,0.00022739,2]
[361905255,1747879849518,-1505.78,0.00022739,2]
[361905256,1747879849528,-430.0,0.00022739,2]
[361905257,1747879849539,-535.97177885,0.00022739,2]
[361905258,1747879849549,-554.32,0.00022739,2]
[361905259,1747879849560,-1099.12,0.00022739,2]
[361905260,1747879849569,-430.0,0.00022739,2]
[361905261,1747879849579,-502.38380828,0.00022739,2]
[361905262,1747879849589,-430.0,0.00022739,2]
[361905263,1747879849599,-534.03246417,0.00022739,2]
[361905264,1747879849609,-522.88862195,0.00022739,2]
[361905265,1747879849619,-543.21,0.00022739,2]
[361905266,1747879849630,-430.0,0.00022739,2]
[361905267,1747879849639,-430.0,0.00022739,2]
[361905268,1747879849649,-460.04863825,0.00022739,2]
[361905269,1747879849660,-552.76,0.00022739,2]
[361905270,1747879849670,-421.74166073,0.00022739,2]
[361905271,1747879849680,-430.0,0.00022739,2]
[361905272,1747879849690,-430.0,0.00022739,2]
[361905273,1747879849800,-430.0,0.00022739,2]
[361905274,1747879849812,-430.0,0.00022739,2]
[361905275,1747879849823,-430.0,0.00022739,2]
[361905276,1747879849832,-430.0,0.00022739,2]
[361905277,1747879849842,-430.0,0.00022739,2]
[361905278,1747879849853,-430.0,0.00022739,2]
[361905279,1747879849862,-430.0,0.00022739,2]
[361905280,1747879849873,-430.0,0.00022739,2]
[361905281,1747879849883,-430.0,0.00022739,2]
[361905282,1747879849893,-430.0,0.00022739,2]
[361905283,1747879849905,-430.0,0.00022739,2]
[361905284,1747879849915,-430.0,0.00022739,2]
[361905285,1747879849925,-430.0,0.00022739,2]
[361905286,1747879849935,-1148.72,0.00022739,2]
[361905287,1747879849945,-949.93,0.00022739,2]
[361905288,1747879849956,-430.0,0.00022739,2]
[361905289,1747879849965,-430.0,0.00022739,2]
[361905290,1747879849980,-430.0,0.00022739,2]
[361905291,1747879849990,-430.0,0.00022739,2]
[361905292,1747879849999,-430.0,0.00022739,2]
[361905293,1747879850009,-522.0083934,0.00022739,2]
[361905294,1747879850019,-430.0,0.00022739,2]
[361905295,1747879850029,-223.72,0.00022739,2]
[361905296,1747879850039,-430.0,0.00022739,2]
[361905297,1747879850048,-430.0,0.00022739,2]
[361905298,1747879850058,-414.0,0.00022739,2]
[361905299,1747879850068,-430.0,0.00022739,2]
[361905300,1747879850078,-430.0,0.00022739,2]
[361905301,1747879850087,-1013.3,0.00022739,2]
[361905302,1747879850097,-456.19,0.00022739,2]
[361905303,1747879850107,-430.0,0.00022739,2]
[361905304,1747879850116,-430.0,0.00022739,2]
[361905305,1747879850125,-539.27330396,0.00022739,2]
[361905306,1747879850135,-430.0,0.00022739,2]
[361905307,1747879850144,-430.0,0.00022739,2]
[361905308,1747879850154,-430.0,0.00022739,2]
[361905309,1747879850163,-430.0,0.00022739,2]
[361905310,1747879850172,-430.0,0.00022739,2]
[361905311,1747879850183,-430.0,0.00022739,2]
[361905312,1747879850192,-430.0,0.00022739,2]
[361905313,1747879850201,-1567.68,0.00022739,2]
[361905314,1747879850211,-430.0,0.00022739,2]
[361905315,1747879850223,-430.0,0.00022739,2]
[361905316,1747879850232,-430.0,0.00022739,2]
[361905317,1747879850242,-430.0,0.00022739,2]
[361905318,1747879850251,-430.0,0.00022739,2]
[361905319,1747879850264,-430.0,0.00022739,2]
[361905320,1747879850274,-430.0,0.00022739,2]
[361905321,1747879850283,-430.0,0.00022739,2]
[361905322,1747879850293,-430.0,0.00022739,2]
[361905323,1747879850303,-430.0,0.00022739,2]
[361905324,1747879850313,-430.0,0.00022739,2]
[361905325,1747879850321,-430.0,0.00022739,2]
[361905326,1747879850331,-430.0,0.00022739,2]
[361905327,1747879850342,-430.0,0.00022739,2]
[361905328,1747879850353,-546.8,0.00022739,2]
[361905329,1747879850362,-430.0,0.00022739,2]
[361905330,1747879850371,-519.71985779,0.00022739,2]
[361905331,1747879850381,-430.0,0.00022739,2]
[361905332,1747879850391,-532.47391769,0.00022739,2]
[361905333,1747879850400,-430.0,0.00022739,2]
[361905334,1747879850409,-430.0,0.00022739,2]
[361905335,1747879850419,-430.0,0.00022739,2]
[361905336,1747879850429,-430.0,0.00022739,2]
[361905337,1747879850440,-306.76,0.00022739,2]
[361905338,1747879850449,-430.0,0.00022739,2]
[361905339,1747879850459,-430.0,0.00022739,2]
[361905340,1747879850469,-532.02455839,0.00022739,2]
[361905341,1747879850481,-505.68,0.00022739,2]
[361905342,1747879850491,-602.46,0.00022739,2]
[361905343,1747879850501,-430.0,0.00022739,2]
[361905344,1747879850511,-195.18,0.00022739,2]
[361905345,1747879850521,-430.0,0.00022739,2]
[361905346,1747879850531,-430.0,0.00022739,2]
[361905347,1747879850540,-430.0,0.00022739,2]
[361905348,1747879850550,-437.61238593,0.00022739,2]
[361905349,1747879850560,-1243.96884507,0.00022797,7]
[361905350,1747879850570,-349.0,0.00023,2]
[361905351,1747879850579,-1000.0,0.00023,2]
[361905352,1747879850590,-430.0,0.00023013,2]
[361905353,1747879850600,-430.0,0.00023013,2]
[361905354,1747879850609,-430.0,0.00023013,2]
[361905355,1747879850619,-430.0,0.00023013,2]
[361905356,1747879850629,-430.0,0.00023013,2]
[361905357,1747879850639,-465.99,0.00023013,2]
[361905358,1747879850649,-430.0,0.00023013,2]
[361905359,1747879850658,-430.0,0.00023013,2]
[361905360,1747879850667,-439.57065357,0.00023013,2]
[361905361,1747879850677,-329.21,0.00023013,2]
[361905362,1747879850687,-438.94,0.00023013,2]
[361905363,1747879850696,-430.0,0.00023013,2]
[361905364,1747879850705,-430.0,0.00023013,2]
[361905365,1747879850715,-430.0,0.00023013,2]
[361905366,1747879850728,-474.85,0.00023013,2]
[361905367,1747879850738,-430.0,0.00023013,2]
[361905368,1747879850747,-430.0,0.00023013,2]
[361905369,1747879850757,-1505.78,0.00023013,2]
[361905370,1747879850767,-353.64,0.00023013,2]
[361905371,1747879850777,-1099.12,0.00023013,2]
[361905372,1747879850787,-430.0,0.00023013,2]
[361905373,1747879850797,-430.0,0.00023013,2]
[361905374,1747879850807,-430.0,0.00023013,2]
[361905375,1747879850816,-430.0,0.00023013,2]
[361905376,1747879850825,-552.76,0.00023013,2]
[361905377,1747879850834,-232.06,0.00023013,2]
[361905378,1747879850844,-430.0,0.00023013,2]
[361905379,1747879850853,-430.0,0.00023013,2]
[361905380,1747879850863,-419.38292798,0.00023013,2]
[361905381,1747879850872,-430.0,0.00023013,2]
[361905382,1747879850881,-430.0,0.00023013,2]
[361905383,1747879850891,-340.11,0.00023013,2]
[361905384,1747879850901,-430.0,0.00023013,2]
[361905385,1747879850910,-430.0,0.00023013,2]
[361905386,1747879850920,-287.28,0.00023013,2]
[361905387,1747879850930,-430.0,0.00023013,2]
[361905388,1747879850939,-430.0,0.00023013,2]
[361905389,1747879850949,-430.0,0.00023013,2]
[361905390,1747879850959,-1148.72,0.00023013,2]
[361905391,1747879850968,-949.93,0.00023013,2]
[361905392,1747879850979,-430.0,0.00023013,2]
[361905393,1747879850988,-494.98,0.00023013,2]
[361905394,1747879850998,-430.0,0.00023013,2]
[361905395,1747879851007,-430.0,0.00023013,2]
[361905396,1747879851017,-430.0,0.00023013,2]
[361905397,1747879851026,-430.0,0.00023013,2]
[361905398,1747879851036,-430.0,0.00023013,2]
[361905399,1747879851045,-1013.3,0.00023013,2]
[361905400,1747879851055,-456.19,0.00023013,2]
[361905401,1747879851065,-430.0,0.00023013,2]
[361905402,1747879851074,-386.3,0.00023013,2]
[361905403,1747879851084,-430.0,0.00023013,2]
[361905404,1747879851094,-438.33628236,0.00023013,2]
[361905405,1747879851103,-430.0,0.00023013,2]
[361905406,1747879851113,-430.0,0.00023013,2]
[361905407,1747879851122,-1567.68,0.00023013,2]
[361905408,1747879851132,-515.88,0.00023013,2]
[361905409,1747879851142,-430.0,0.00023013,2]
[361905410,1747879851152,-430.0,0.00023013,2]
[361905411,1747879851162,-430.0,0.00023013,2]
[361905412,1747879851171,-430.0,0.00023013,2]
[361905413,1747879851182,-430.0,0.00023013,2]
[361905414,1747879851192,-446.02,0.00023013,2]
[361905415,1747879851202,-209.35,0.00023013,2]
[361905416,1747879851212,-395.05970409,0.00023013,2]
[361905417,1747879851223,-236.06,0.00023013,2]
[361905418,1747879851232,-430.0,0.00023013,2]
[361905419,1747879851243,-368.18,0.00023013,2]
[361905420,1747879851252,-546.8,0.00023013,2]
[361905421,1747879851264,-442.54363135,0.00023013,2]
[361905422,1747879851277,-430.0,0.00023013,2]
[361905423,1747879851286,-499.5,0.00023013,2]
[361905424,1747879851296,-430.0,0.00023013,2]
[361905425,1747879851307,-437.92674852,0.00023013,2]
[361905426,1747879851317,-430.0,0.00023013,2]
[361905427,1747879851326,-430.0,0.00023013,2]
[361905428,1747879851336,-443.33724821,0.00023013,2]
[361905429,1747879851346,-602.46,0.00023013,2]
[361905430,1747879851356,-561.71104593,0.00023013,2]
[361905431,1747879851366,-430.0,0.00023013,2]
[361905432,1747879851376,-430.0,0.00023013,2]
[361905433,1747879851386,-538.44,0.00023013,2]
[361905434,1747879851396,-1243.96884507,0.00023038,8]
[361905435,1747879851406,-1086.0,0.0002326,120]
[361905436,1747879851415,-1086.0,0.0002327,120]
[361905437,1747879851425,-1243.96884507,0.00023279,8]
[361905438,1747879851435,-1086.0,0.0002328,120]
[361905439,1747879851446,-430.0,0.00023287,2]
[361905440,1747879851455,-430.0,0.00023287,2]
[361905441,1747879851464,-565.47849537,0.00023287,2]
[361905442,1747879851474,-356.81100998,0.00023287,2]
[361905443,1747879851484,-430.0,0.00023287,2]
[361905444,1747879851494,-430.0,0.00023287,2]
[361905445,1747879851599,-430.0,0.00023287,2]
[361905446,1747879851609,-438.94,0.00023287,2]
[361905447,1747879851620,-430.0,0.00023287,2]
[361905448,1747879851631,-261.3,0.00023287,2]
[361905449,1747879851640,-430.0,0.00023287,2]
[361905450,1747879851651,-474.85,0.00023287,2]
[361905451,1747879851661,-430.0,0.00023287,2]
[361905452,1747879851671,-344.32,0.00023287,2]
[361905453,1747879851681,-1505.78,0.00023287,2]
[361905454,1747879851690,-1099.12,0.00023287,2]
[361905455,1747879851700,-430.0,0.00023287,2]
[361905456,1747879851710,-576.58,0.00023287,2]
[361905457,1747879851720,-430.0,0.00023287,2]
[361905458,1747879851733,-552.76,0.00023287,2]
[361905459,1747879851742,-430.0,0.00023287,2]
[361905460,1747879851752,-430.0,0.00023287,2]
[361905461,1747879851761,-430.0,0.00023287,2]
[361905462,1747879851771,-430.0,0.00023287,2]
[361905463,1747879851780,-430.0,0.00023287,2]
[361905464,1747879851789,-204.18,0.00023287,2]
[361905465,1747879851799,-195.94,0.00023287,2]
[361905466,1747879851809,-1148.72,0.00023287,2]
[361905467,1747879851820,-949.93,0.00023287,2]
[361905468,1747879851830,-430.0,0.00023287,2]
[361905469,1747879851839,-448.98,0.00023287,2]
[361905470,1747879851849,-430.0,0.00023287,2]
[361905471,1747879851859,-430.0,0.00023287,2]
[361905472,1747879851868,-430.0,0.00023287,2]
[361905473,1747879851877,-1013.3,0.00023287,2]
[361905474,1747879851887,-456.19,0.00023287,2]
[361905475,1747879851899,-430.0,0.00023287,2]
[361905476,1747879851909,-430.0,0.00023287,2]
[361905477,1747879851919,-430.0,0.00023287,2]
[361905478,1747879851929,-1567.68,0.00023287,2]
[361905479,1747879851939,-430.0,0.00023287,2]
[361905480,1747879851948,-430.0,0.00023287,2]
[361905481,1747879851958,-430.0,0.00023287,2]
[361905482,1747879851967,-430.0,0.00023287,2]
[361905483,1747879851979,-430.0,0.00023287,2]
[361905484,1747879851989,-430.0,0.00023287,2]
[361905485,1747879851998,-546.8,0.00023287,2]
[361905486,1747879852007,-551.22,0.00023287,2]
[361905487,1747879852018,-430.0,0.00023287,2]
[361905488,1747879852028,-602.46,0.00023287,2]
[361905489,1747879852038,-430.0,0.00023287,2]
[361905490,1747879852047,-430.0,0.00023287,2]
[361905491,1747879852057,-4286.28,0.00023287,2]
[361905492,1747879852066,-1223.7273391,0.00023309,2]
[361905493,1747879852076,-151.0,0.000235,7]
[361905494,1747879852086,-235.791171,0.000235,7]
[361905495,1747879852095,-235.791171,0.000235,7]
[361905496,1747879852104,-501.46429669,0.000235,2]
[361905497,1747879852114,-500.90766054,0.000235,2]
[361905498,1747879852124,-502.49010155,0.000235,2]
[361905499,1747879852133,-1243.96884507,0.00023521,9]
[361905500,1747879852143,-462.80588903,0.00023561,2]
[361905501,1747879852153,-430.0,0.00023561,2]
[361905502,1747879852162,-430.0,0.00023561,2]
[361905503,1747879852172,-430.0,0.00023561,2]
[361905504,1747879852183,-156.26,0.00023561,2]
[361905505,1747879852192,-438.94,0.00023561,2]
[361905506,1747879852201,-206.83,0.00023561,2]
[361905507,1747879852211,-430.0,0.00023561,2]
[361905508,1747879852220,-474.85,0.00023561,2]
[361905509,1747879852233,-430.0,0.00023561,2]
[361905510,1747879852243,-1505.78,0.00023561,2]
[361905511,1747879852254,-1099.12,0.00023561,2]
[361905512,1747879852265,-430.0,0.00023561,2]
[361905513,1747879852275,-430.0,0.00023561,2]
[361905514,1747879852285,-552.76,0.00023561,2]
[361905515,1747879852295,-430.0,0.00023561,2]
[361905516,1747879852306,-430.0,0.00023561,2]
[361905517,1747879852315,-430.0,0.00023561,2]
[361905518,1747879852326,-430.0,0.00023561,2]
[361905519,1747879852336,-444.87,0.00023561,2]
[361905520,1747879852347,-1148.72,0.00023561,2]
[361905521,1747879852357,-949.93,0.00023561,2]
[361905522,1747879852366,-430.0,0.00023561,2]
[361905523,1747879852375,-430.0,0.00023561,2]
[361905524,1747879852385,-238.95,0.00023561,2]
[361905525,1747879852395,-430.0,0.00023561,2]
[361905526,1747879852405,-1013.3,0.00023561,2]
[361905527,1747879852414,-456.19,0.00023561,2]
[361905528,1747879852424,-362.1,0.00023561,2]
[361905529,1747879852433,-430.0,0.00023561,2]
[361905530,1747879852443,-430.0,0.00023561,2]
[361905531,1747879852453,-1567.68,0.00023561,2]
[361905532,1747879852463,-430.0,0.00023561,2]
[361905533,1747879852475,-158.84537655,0.00023561,2]
[361905534,1747879852486,-430.0,0.00023561,2]
[361905535,1747879852495,-430.0,0.00023561,2]
[361905536,1747879852505,-430.0,0.00023561,2]
[361905537,1747879852514,-430.0,0.00023561,2]
[361905538,1747879852524,-546.8,0.00023561,2]
[361905539,1747879852534,-430.0,0.00023561,2]
[361905540,1747879852543,-602.46,0.00023561,2]
[361905541,1747879852553,-430.0,0.00023561,2]
[361905542,1747879852563,-513.01,0.00023561,2]
[361905543,1747879852572,-1243.96884507,0.00023762,9]
[361905544,1747879852582,-430.0,0.00023835,2]
[361905545,1747879852592,-430.0,0.00023835,2]
[361905546,1747879852602,-430.0,0.00023835,2]
[361905547,1747879852611,-438.94,0.00023835,2]
[361905548,1747879852621,-430.0,0.00023835,2]
[361905549,1747879852631,-474.85,0.00023835,2]
[361905550,1747879852640,-312.46,0.00023835,2]
[361905551,1747879852653,-1505.78,0.00023835,2]
[361905552,1747879852662,-1099.12,0.00023835,2]
[361905553,1747879852672,-432.66,0.00023835,2]
[361905554,1747879852682,-430.0,0.00023835,2]
[361905555,1747879852692,-552.76,0.00023835,2]
[361905556,1747879852701,-218.06,0.00023835,2]
[361905557,1747879852711,-430.0,0.00023835,2]
[361905558,1747879852721,-430.0,0.00023835,2]
[361905559,1747879852733,-430.0,0.00023835,2]
[361905560,1747879852743,-1148.72,0.00023835,2]
[361905561,1747879852752,-949.93,0.00023835,2]
[361905562,1747879852762,-432.17,0.00023835,2]
[361905563,1747879852772,-430.0,0.00023835,2]
[361905564,1747879852781,-430.0,0.00023835,2]
[361905565,1747879852791,-1013.3,0.00023835,2]
[361905566,1747879852800,-456.19,0.00023835,2]
[361905567,1747879852810,-396.68,0.00023835,2]
[361905568,1747879852819,-430.0,0.00023835,2]
[361905569,1747879852829,-1567.68,0.00023835,2]
[361905570,1747879852839,-430.0,0.00023835,2]
[361905571,1747879852850,-430.0,0.00023835,2]
[361905572,1747879852859,-430.0,0.00023835,2]
[361905573,1747879852870,-430.0,0.00023835,2]
[361905574,1747879852879,-151.96,0.00023835,2]
[361905575,1747879852889,-546.8,0.00023835,2]
[361905576,1747879852898,-430.0,0.00023835,2]
[361905577,1747879852908,-602.46,0.00023835,2]
[361905578,1747879852917,-430.0,0.00023835,2]
[361905579,1747879852927,-151.0,0.00024,5]
[361905580,1747879852937,-1000.0,0.00024,2]
[361905581,1747879852947,-1243.96884507,0.00024003,10]
[361905582,1747879852957,-1223.7273391,0.00024054,2]
[361905583,1747879852966,-430.0,0.00024109,2]
[361905584,1747879852977,-430.0,0.00024109,2]
[361905585,1747879852986,-386.1,0.00024109,2]
[361905586,1747879852996,-438.94,0.00024109,2]
[361905587,1747879853005,-430.0,0.00024109,2]
[361905588,1747879853015,-474.85,0.00024109,2]
[361905589,1747879853024,-1505.78,0.00024109,2]
[361905590,1747879853034,-1099.12,0.00024109,2]
[361905591,1747879853044,-521.95150537,0.00024109,2]
[361905592,1747879853053,-552.76,0.00024109,2]
[361905593,1747879853063,-430.0,0.00024109,2]
[361905594,1747879853073,-430.0,0.00024109,2]
[361905595,1747879853082,-430.0,0.00024109,2]
[361905596,1747879853092,-1148.72,0.00024109,2]
[361905597,1747879853101,-949.93,0.00024109,2]
[361905598,1747879853111,-387.92706392,0.00024109,2]
[361905599,1747879853120,-430.0,0.00024109,2]
[361905600,1747879853129,-1013.3,0.00024109,2]
[361905601,1747879853139,-456.19,0.00024109,2]
[361905602,1747879853149,-471.00125954,0.00024109,2]
[361905603,1747879853252,-1567.68,0.00024109,2]
[361905604,1747879853264,-430.0,0.00024109,2]
[361905605,1747879853274,-430.0,0.00024109,2]
[361905606,1747879853284,-430.0,0.00024109,2]
[361905607,1747879853294,-245.37541685,0.00024109,2]
[361905608,1747879853303,-546.8,0.00024109,2]
[361905609,1747879853312,-430.0,0.00024109,2]
[361905610,1747879853323,-602.46,0.00024109,2]
[361905611,1747879853332,-430.0,0.00024109,2]
[361905612,1747879853342,-363.6506951,0.00024219,2]
[361905613,1747879853352,-363.6506951,0.00024219,2]
[361905614,1747879853361,-363.6506951,0.00024219,2]
[361905615,1747879853370,-363.6506951,0.00024219,2]
[361905616,1747879853379,-716.1684476,0.00024219,2]
[361905617,1747879853388,-1243.96884507,0.00024245,10]
[361905618,1747879853398,-151.0,0.000243,5]
[361905619,1747879853407,-151.0,0.00024383,7]
[361905620,1747879853417,-235.791171,0.00024383,7]
[361905621,1747879853426,-235.791171,0.00024383,7]
[361905622,1747879853436,-430.0,0.00024383,2]
[361905623,1747879853446,-430.0,0.00024383,2]
[361905624,1747879853455,-438.94,0.00024383,2]
[361905625,1747879853464,-430.0,0.00024383,2]
[361905626,1747879853476,-474.85,0.00024383,2]
[361905627,1747879853486,-1505.78,0.00024383,2]
[361905628,1747879853496,-1099.12,0.00024383,2]
[361905629,1747879853506,-552.76,0.00024383,2]
[361905630,1747879853515,-430.0,0.00024383,2]
[361905631,1747879853526,-343.1,0.00024383,2]
[361905632,1747879853535,-430.0,0.00024383,2]
[361905633,1747879853545,-1148.72,0.00024383,2]
[361905634,1747879853555,-949.93,0.00024383,2]
[361905635,1747879853565,-430.0,0.00024383,2]
[361905636,1747879853574,-456.19,0.00024383,2]
[361905637,1747879853584,-1013.3,0.00024383,2]
[361905638,1747879853594,-1567.68,0.00024383,2]
[361905639,1747879853603,-430.0,0.00024383,2]
[361905640,1747879853613,-430.0,0.00024383,2]
[361905641,1747879853623,-430.0,0.00024383,2]
[361905642,1747879853632,-546.8,0.00024383,2]
[361905643,1747879853642,-430.0,0.00024383,2]
[361905644,1747879853651,-602.46,0.00024383,2]
[361905645,1747879853661,-430.0,0.00024383,2]
[361905646,1747879853670,-1243.96884507,0.00024486,11]
[361905647,1747879853680,-160.7666925,0.00024493,2]
[361905648,1747879853690,-179.529871,0.00024493,2]
[361905649,1747879853700,-211.2414124,0.00024493,2]
[361905650,1747879853709,-153.0,0.00024493,2]
[361905651,1747879853719,-578.8171008,0.00024493,2]
[361905652,1747879853730,-570.0198762,0.00024493,2]
[361905653,1747879853739,-176.0716068,0.00024493,2]
[361905654,1747879853749,-158.1770606,0.00024493,2]
[361905655,1747879853758,-158.1770606,0.00024493,2]
[361905656,1747879853768,-176.0716068,0.00024493,2]
[361905657,1747879853777,-570.0198762,0.00024493,2]
[361905658,1747879853787,-643.1305,0.000245,2]
[361905659,1747879853797,-151.0,0.000246,10]
[361905660,1747879853807,-151.0,0.00024657,7]
[361905661,1747879853817,-235.791171,0.00024657,7]
[361905662,1747879853826,-235.791171,0.00024657,7]
[361905663,1747879853835,-169.92,0.00024657,2]
[361905664,1747879853846,-482.29,0.00024657,2]
[361905665,1747879853856,-438.94,0.00024657,2]
[361905666,1747879853866,-430.0,0.00024657,2]
[361905667,1747879853875,-345.33110242,0.00024657,2]
[361905668,1747879853885,-430.0,0.00024657,2]
[361905669,1747879853895,-474.85,0.00024657,2]
[361905670,1747879853905,-1505.78,0.00024657,2]
[361905671,1747879853915,-1099.12,0.00024657,2]
[361905672,1747879853925,-552.76,0.00024657,2]
[361905673,1747879853934,-430.0,0.00024657,2]
[361905674,1747879853944,-430.0,0.00024657,2]
[361905675,1747879853953,-1148.72,0.00024657,2]
[361905676,1747879853963,-949.93,0.00024657,2]
[361905677,1747879853972,-430.0,0.00024657,2]
[361905678,1747879853983,-456.19,0.00024657,2]
[361905679,1747879853993,-1013.3,0.00024657,2]
[361905680,1747879854003,-200.05975851,0.00024657,2]
[361905681,1747879854012,-1567.68,0.00024657,2]
[361905682,1747879854022,-396.1416791,0.00024657,2]
[361905683,1747879854031,-430.0,0.00024657,2]
[361905684,1747879854041,-475.06,0.00024657,2]
[361905685,1747879854051,-546.8,0.00024657,2]